Cogmind - Beta 15 @@@ ROGUE MODE // 2025.08.23 @ 08:21:30 Player: beans Result: Destroyed by Y-54 Guardian with Gatling Laser Performance ------------- Evolutions (3) 1500 Regions Visited (4) 800 Robots Destroyed (102) 510 Value Destroyed (2774) 2774 Prototype IDs (4) 80 Alien Tech Used (0) 0 Bonus (197) 197 TOTAL SCORE: 5861 Bonus ------- High Alert Combat Kills 197 Cogmind --------- Core Integrity 0/700 Matter 69/300 Energy 47/100 System Corruption 5% Temperature Cool (18) Movement Core (50) Location -7/Factory Parts ------- > --- POWER (2) -------- (None) > --- PROPULSION (2) --- (None) > --- UTILITY (5) ------ Terrain Scan Processor > --- WEAPON (4) ------- (None) > --- INVENTORY (5) ---- Cryofiber Web Autogun Rocket Launcher Peak State ------------ > --- POWER ------------ Heavy Deuterium Engine > --- PROPULSION ------- Armored Treads Medium Treads > --- UTILITY ---------- Large Storage Unit High-capacity Matter Pod Terrain Scan Processor Improved Targeting Computer > --- WEAPON ----------- Plasma Cannon Heavy Ion Cannon > --- INVENTORY -------- Cryofiber Web Autogun Assault Cannon Rocket Launcher [Rating: 27] Favorites ----------- Power Cooled Ion Engine Engine Cooled Ion Engine Propulsion Light Treads Treads Light Treads Utility Terrain Scan Processor Device Structural Scanner Storage Large Storage Unit Processor Terrain Scan Processor Weapon Assault Cannon Energy Cannon Plasma Cannon Ballistic Gun Light Assault Rifle Ballistic Cannon Assault Cannon Launcher Rocket Launcher Build | -11 -10 -9 -8 -7 ------- Run | Yrd Mat Mat Mat Fac Slots Evolved 6 | . . 2 2 2 Power 1 | . . . . 1 Propulsion . | . . . . . Utility 3 | . . . 2 1 Weapon 2 | . . 2 . . Parts Attached 43 | 4 1 18 8 12 Power 3 | . . 2 . 1 Engine 3 | . . 2 . 1 Core . | . . . . . Reactor . | . . . . . Propulsion 10 | 2 . 5 2 1 Treads 10 | 2 . 5 2 1 Leg . | . . . . . Wheel . | . . . . . Hover . | . . . . . Flight . | . . . . . Utility 6 | . . 2 3 1 Device 1 | . . 1 . . Storage 2 | . . . 2 . Processor 3 | . . 1 1 1 Hackware . | . . . . . Protection . | . . . . . Artifact . | . . . . . Weapon 24 | 2 1 9 3 9 Energy Gun . | . . . . . Energy Cannon 2 | . . . . 2 Ballistic Gun 9 | 2 . 3 . 4 Ballistic Cannon 6 | . . 3 1 2 Launcher 7 | . 1 3 2 1 Special Weapon . | . . . . . Impact Weapon . | . . . . . Slashing Weapon . | . . . . . Piercing Weapon . | . . . . . Special Melee Weapon . | . . . . . Unidentified Prototypes 4 | . . 2 1 1 Parts Lost 34 | . 1 8 9 16 Power 2 | . . . 1 1 Propulsion 8 | . . 3 2 3 Utility 5 | . . . 1 4 Weapon 19 | . 1 5 5 8 Highest Loss Streak 7 | . 1 5 7 6 To Critical Strikes . | . . . . . Average Backups 2 | . 1 1 2 3 Power . | . . . . . Propulsion . | . . . . . Utility . | . . . . 1 Weapon 2 | . 1 1 1 2 Tool/Special . | . . . . . Unused Backups 1 | . . . . 1 Power . | . . . . . Propulsion . | . . . . . Utility 1 | . . . . 1 Weapon . | . . . . . Tool/Special . | . . . . . Average Slot Usage (%) 67 | . 53 69 76 61 Engine 5 | . . 8 5 3 Treads 16 | . 28 17 16 8 Device 3 | . . 6 5 . Storage 6 | . . . 10 14 Processor 11 | . . 6 17 15 Energy Cannon 1 | . . . . 5 Ballistic Gun 10 | . 15 20 . 8 Ballistic Cannon 7 | . . 2 16 4 Launcher 4 | . 8 7 4 . Peak Build Rating 27 | 4 4 21 26 27 Average Rating 14 | 2 3 10 19 19 On Entrance 8 | . 4 3 21 15 Naked Turns 12 | . . 12 . . Heaviest Build 50 | 3 5 24 48 50 Greatest Support 48 | 40 40 44 44 48 Greatest Overweight (x) 16 | . . 4 6 16 Average Overweight (x) . | . . . . 1 Largest Inventory Capacity 15 | 5 5 5 15 15 Average Capacity 10 | 5 5 5 14 14 Most Carried 7 | 3 2 5 5 7 Average Carried 2 | 1 1 1 2 3 Final Capacity 15 | 5 5 5 15 5 Final Carried 4 | 1 2 4 2 3 Class Distribution -------------------- 44% | Mutant 37% | Gunner 18% | Skirmisher Dominant Class ---------------- Mutant | -10/Materials Skirmisher | -9/Materials Gunner | -8/Materials Mutant | -7/Factory Resources | -11 -10 -9 -8 -7 ----------- Run | Yrd Mat Mat Mat Fac Matter Collected 2326 | 179 276 683 911 277 Remotely . | . . . . . Salvage Created 2586 | . 452 829 963 342 Parts 178 | . 40 66 49 23 Haulers Intercepted 6 | . 2 1 2 1 Recyclers Shooed 6 | . 3 2 1 . Parts Field Recycled . | . . . . . Retrieved Matter . | . . . . . Parts Self-Destructed . | . . . . . Prevented . | . . . . . Kills | -11 -10 -9 -8 -7 ------- Run | Yrd Mat Mat Mat Fac Combat Hostiles Destroyed 64 | . 8 27 21 8 Guns 14 | . 4 9 . 1 Cannons 25 | . . . 18 7 AOE 25 | . 4 18 3 . Classes Destroyed 15 | . 7 3 4 1 Worker 7 | . 1 1 4 1 Builder 12 | . 5 4 3 . Tunneler 2 | . . 1 1 . Hauler 6 | . 2 1 2 1 Recycler 6 | . 2 2 2 . Mechanic 1 | . . . 1 . Watcher 4 | . 1 1 2 . Swarmer 13 | . 3 10 . . Grunt 33 | . 5 12 13 3 Brawler 1 | . . 1 . . Duelist 1 | . . . 1 . Sentry 9 | . . 4 4 1 Specialist 2 | . . . 2 . Hunter 2 | . . . 1 1 Programmer 3 | . . . . 3 Best Kill Streak 13 | . 7 13 13 2 Combat Bots Only 8 | . 3 8 7 2 Max Kills in Single Turn 5 | . 4 5 3 1 Gunslinging . | . . . . . Exploded 3 | . 2 3 2 . Melee . | . . . . . Uniques/NPCs Destroyed . | . . . . . Combat | -11 -10 -9 -8 -7 -------- Run | Yrd Mat Mat Mat Fac Hostile Shots Fired 717 | . 48 163 161 345 Missed 242 | . 12 48 59 123 Hits 475 | . 36 115 102 222 Projectile 475 | . 36 115 102 222 AOE 2 | . . . . 2 Critical Strikes 18 | . . 3 7 8 Damage Taken 6328 | . 402 1267 1777 2882 Core 1431 | . 58 366 302 705 Absorbed by Shields . | . . . . . Core Remaining (%) 57 | 100 76 8 45 . Volleys Fired 268 | . 43 78 90 57 Largest 4 | . 2 3 4 4 Hottest 145 | . 50 77 144 145 Shots Fired 495 | . 65 176 177 77 Gun 202 | . 43 143 . 16 Cannon 229 | . . 4 166 59 Launcher 64 | . 22 29 11 2 Special . | . . . . . Kinetic 393 | . 43 147 166 37 Thermal 38 | . . . . 38 Explosive 63 | . 22 29 10 2 Electromagnetic 1 | . . . 1 . Robot Hit Streak 14 | . 6 7 8 14 Robot Miss Streak 5 | . 4 4 5 2 Penetration Max . | . . . . . Secondary Targets . | . . . . . Shots Hit Robots 261 | . 25 90 96 50 Core Hits 173 | . 28 69 56 20 Critical Kills . | . . . . . Critical Parts Destroyed . | . . . . . Critical Strikes 5 | . . . 5 . Blast 5 | . . . 5 . Melee Attacks . | . . . . . Impact . | . . . . . Slashing . | . . . . . Piercing . | . . . . . Sneak Attacks . | . . . . . Combat Hostiles . | . . . . . Follow-up Attacks . | . . . . . Damage Inflicted 7997 | . 1044 2516 3121 1316 Guns 1169 | . 271 681 . 217 Cannons 3456 | . . 46 2418 992 Explosions 3371 | . 773 1788 703 107 Melee . | . . . . . Ramming 1 | . . 1 . . Kinetic 4002 | . 271 727 2418 586 Thermal 695 | . . 72 . 623 Explosive 3277 | . 773 1716 681 107 Electromagnetic 22 | . . . 22 . Impact . | . . . . . Slashing . | . . . . . Piercing . | . . . . . Highest Corruption 5 | . . . 1 5 Average Corruption 3 | . . . 1 4 Corruption Purged . | . . . . . Corruption Blocked . | . . . . . Effects 26 | . . . 9 17 Message Errors 7 | . . . 1 6 Matter Fused 5 | . . . 1 4 Heat Flow Errors 2 | . . . 2 . Energy Discharges 3 | . . . 3 . Parts Rejected 2 | . . . 1 1 Data Loss (minor) 4 | . . . . 4 Data Loss (major) 1 | . . . 1 . Weapon Failures 2 | . . . . 2 Overload Shots . | . . . . . Overflow Damage 97 | . 41 29 27 . Projectiles 3 | . . . 3 . Explosions 94 | . 41 29 24 . Melee . | . . . . . Knockbacks 24 | . . . 20 4 Impact . | . . . . . Kinetic 23 | . . . 19 4 Secondary 1 | . . . 1 . Self-Inflicted Damage 250 | . 31 . 219 . Shots 6 | . 1 . 5 . Rammed 4 | . . 4 . . Targets Rammed 4 | . . 4 . . Kicked . | . . . . . Crushed . | . . . . . Highest Temperature 281 | . 6 115 281 157 Average Temperature 66 | . 6 26 96 47 Received Heat Transfer 2214 | . 120 480 828 786 Effects 1 | . . . 1 . Energy Bleed 1 | . . . 1 . Siege Activations . | . . . . . Martial Activations . | . . . . . Shielding Activations . | . . . . . Robots Disrupted . | . . . . . Combat Hostiles . | . . . . . Robots Corrupted . | . . . . . Combat Hostiles . | . . . . . Parts Fried . | . . . . . Impact Corruptions . | . . . . . Robots Melted . | . . . . . Combat Hostiles . | . . . . . Parts Melted 1 | . . . . 1 Heat Transferred 1020 | . . 50 . 970 Parts Sabotaged . | . . . . . Parts Stolen . | . . . . . Parts Stripped . | . . . . . Power Chain Reactions . | . . . . . Alert | -11 -10 -9 -8 -7 ------- Run | Yrd Mat Mat Mat Fac Maximum Alert Level 2 | . . 2 2 1 Low Security (%) 50 | 100 100 49 . 92 Level 1 14 | . . 23 17 7 Level 2 34 | . . 26 82 . Level 3 . | . . . . . Level 4 . | . . . . . Level 5 . | . . . . . High Security . | . . . . . Max Security . | . . . . . Peak Influence 646 | . 194 646 597 217 Initial 250 | . . 68 250 217 Average 265 | . 109 285 450 89 Influence Increases 2467 | . 359 1080 787 241 Destroy 0b10 Robot/C 1280 | . 160 540 420 160 Destroy 0b10 Robot/NC 190 | . 55 50 75 10 Destroy Leader 340 | . 36 144 108 52 Disable Machine 225 | . 15 150 60 . Destroy Structure 387 | . 78 181 109 19 Partial Spotted 15 | . . . 15 . Lose Combat Pursuer 30 | . 15 15 . . Influence Decreases 2467 | . 196 649 904 718 Entered New Map 699 | . . 95 344 260 Time Decay 1476 | . 186 474 470 346 Lost Part 292 | . 10 80 90 112 Squads Dispatched 22 | . 3 6 4 9 Investigation 5 | . 2 2 . 1 Extermination 2 | . . . . 2 Reinforcement 10 | . 1 4 4 1 Assault 2 | . . . . 2 Garrison 3 | . . . . 3 Intercept . | . . . . . Searches Triggered . | . . . . . Construction Impeded 3 | . . 1 2 . Haulers Reinforced . | . . . . . Active Scanning Responses . | . . . . . Cargo Convoy Interrupts . | . . . . . Stealth | -11 -10 -9 -8 -7 --------- Run | Yrd Mat Mat Mat Fac Distress Signals 6 | . 3 . 3 . Communications Jammed . | . . . . . Distress Signals . | . . . . . Times Spotted 106 | . 19 39 34 14 Peak Tracking Total 6 | . 6 6 6 3 Tactical Retreats 2 | . 1 1 . . Traps | -11 -10 -9 -8 -7 ------- Run | Yrd Mat Mat Mat Fac Traps Triggered 4 | . 2 2 . . Indirectly . | . . . . . Trap Hack Attempts . | . . . . . Triggered . | . . . . . Disarmed 1 | . 1 . . . Reprogrammed . | . . . . . Reused . | . . . . . Traps Extracted . | . . . . . Installed . | . . . . . Triggered . | . . . . . Machines | -11 -10 -9 -8 -7 ---------- Run | Yrd Mat Mat Mat Fac Machines Disabled 15 | . 1 10 4 . Max in Single Turn 3 | . 1 3 2 . Garrison Access 1 | . . . . 1 Machines Repaired . | . . . . . Machines Dismantled . | . . . . . Machines Sabotaged . | . . . . . Overloaded Fab Kills . | . . . . . Hacking | -11 -10 -9 -8 -7 --------- Run | Yrd Mat Mat Mat Fac Machines Accessed 2 | . 1 . . 1 Terminals 1 | . 1 . . . Fabricators . | . . . . . Repair Stations . | . . . . . Recycling Units 1 | . . . . 1 Scanalyzers . | . . . . . Garrison Access . | . . . . . Total Hacks 8 | . 5 . . 3 Successful 3 | . 2 . . 1 Failed 5 | . 3 . . 2 Catastrophic . | . . . . . Database Lockouts . | . . . . . Manual . | . . . . . Terminals 5 | . 5 . . . Fabricators . | . . . . . Repair Stations . | . . . . . Recycling Units 3 | . . . . 3 Scanalyzers . | . . . . . Garrison Access . | . . . . . Terminal Hacks 2 | . 2 . . . Locate Traps 1 | . 1 . . . Disarm Traps 1 | . 1 . . . Fabricator Hacks . | . . . . . Repair Station Hacks . | . . . . . Recycling Unit Hacks 1 | . . . . 1 Report Inventory 1 | . . . . 1 Scanalyzer . | . . . . . Garrison Access Hacks . | . . . . . Unauthorized Hacks . | . . . . . Terminals . | . . . . . Fabricators . | . . . . . Repair Stations . | . . . . . Recycling Units . | . . . . . Scanalyzers . | . . . . . Garrison Access . | . . . . . Data Cores Recovered . | . . . . . Used . | . . . . . Hacking Detections 2 | . 1 . . 1 Full Trace Events 1 | . . . . 1 Feedback Events . | . . . . . Feedback Blocked . | . . . . . Robot Schematics Acquired . | . . . . . Robots Built . | . . . . . Authchips . | . . . . . Time . | . . . . . Total Robot Build Rating . | . . . . . Part Schematics Acquired . | . . . . . Parts Built . | . . . . . Authchips . | . . . . . Time . | . . . . . Total Part Build Rating . | . . . . . Parts Repaired . | . . . . . Time . | . . . . . Parts Recycled . | . . . . . Recycled Matter . | . . . . . Retrieved Matter . | . . . . . Retrieved Components . | . . . . . Parts Scanalyzed . | . . . . . Part Schematics Acquired . | . . . . . Parts Damaged . | . . . . . Bothacking | -11 -10 -9 -8 -7 ------------ Run | Yrd Mat Mat Mat Fac Used RIF Installer . | . . . . . Robots Hacked . | . . . . . Non-combat . | . . . . . Combat . | . . . . . Robot Hacks Applied . | . . . . . Relay Couplers Released 1 | . . . . 1 Machine Destruction 1 | . . . . 1 Fabnet Peak Effective % . | . . . . . Robots Rewired . | . . . . . Allies Hacked . | . . . . . Hacks Repelled . | . . . . . Allies | -11 -10 -9 -8 -7 -------- Run | Yrd Mat Mat Mat Fac Total Allies . | . . . . . Largest Group . | . . . . . Highest-Rated Group . | . . . . . Highest-Rated Ally . | . . . . . Total Orders . | . . . . . Ally Attacks . | . . . . . Total Damage . | . . . . . Kills . | . . . . . Allies Corrupted . | . . . . . Allies Melted . | . . . . . Intel | -11 -10 -9 -8 -7 ------- Run | Yrd Mat Mat Mat Fac Active Infowar (turns) 1399 | . . 676 723 . Structural 1399 | . . 676 723 . Robot Analysis Total . | . . . . . Derelict Logs Recovered . | . . . . . Drone Launches . | . . . . . Drone Recoveries . | . . . . . Exploration | -11 -10 -9 -8 -7 ------------- Run | Yrd Mat Mat Mat Fac Turns Passed 3803 | 43 428 1210 1185 937 Spaces Moved 1665 | 33 199 636 491 306 Core 189 | 16 . 126 7 40 Treads 1476 | 17 199 510 484 266 Legs . | . . . . . Wheels . | . . . . . Hover . | . . . . . Flight . | . . . . . Fastest Speed 50 | 50 160 50 145 50 Average Speed 178 | 106 160 148 183 252 Slowest Speed 850 | 160 160 250 350 850 Overloaded Moves . | . . . . . Propulsion Burnouts . | . . . . . Robots Hopped . | . . . . . Potential Cave-ins . | . . . . . Cave-ins Triggered . | . . . . . Exploration Rate (%) 34 | 4 52 57 51 9 Regions Visited 4 Branch Regions . Pre-discovered Areas . | . . . . . Known Exits Taken . | . . . . . Unknown Exits Taken 4 | 1 1 1 1 . Scrap Searched . | . . . . . Spaces Dug 18 | . . 18 . . Terrain Destroyed 438 | . 117 181 121 19 Melee . | . . . . . Projectile 42 | . . . 39 3 AOE 396 | . 117 181 82 16 Terrain Rammed . | . . . . . Walls Destroyed . | . . . . . Machines Disabled . | . . . . . Actions | -11 -10 -9 -8 -7 --------- Run | Yrd Mat Mat Mat Fac Total 2089 | 41 243 773 630 402 Wait 50 | . . 12 30 8 Move 1661 | 32 198 635 490 306 Hop . | . . . . . Pick Up 44 | 5 1 19 7 12 Fast Attach 1 | . . 1 . . Attach 45 | 4 . 16 11 14 Detach 6 | . . 1 2 3 Swap 5 | . 1 2 . 2 Drop 5 | . . 5 . . Fire 268 | . 43 78 90 57 Melee . | . . . . . Ram . | . . . . . Kick . | . . . . . Crush 4 | . . 4 . . Escape Stasis . | . . . . . Rewire . | . . . . . Trap . | . . . . . Miscellaneous . | . . . . . Route ------- -11/Scrapyard -10/Materials -9/Materials -8/Materials -7/Factory History --------- Turn | Location | Event 4 | -11/Scrapyard | Discovered new exit (range 16) 44 | -11/Scrapyard | Entered Materials 303 | -10/Materials | Build established: Mutant 467 | -10/Materials | Discovered new exit (range 4) 472 | -10/Materials | Entered another Materials area 472 | -9/Materials | Evolved 2 slots: Weapon x2 610 | -9/Materials | Core integrity fell below 50% 655 | -9/Materials | Lost 5 parts (2n3w) 957 | -9/Materials | Build established: Gunner 1103 | -9/Materials | Core integrity fell below 20% 1235 | -9/Materials | Destroyed 8 combat bots 1510 | -9/Materials | Build established: Skirmisher 1675 | -9/Materials | Discovered new exit (range 6) 1682 | -9/Materials | Entered another Materials area 1682 | -8/Materials | Evolved 2 slots: Utility x2 1954 | -8/Materials | Destroyed 7 combat bots 2060 | -8/Materials | Build established: Gunner 2436 | -8/Materials | Lost 7 parts (1p2n1u3w) 2664 | -8/Materials | Build established: Mutant 2796 | -8/Materials | Core integrity fell below 50% 2841 | -8/Materials | Discovered new exit (range 14) 2867 | -8/Materials | Entered Factory 2867 | -7/Factory | Evolved 2 slots: Power x1, Utility x1 3523 | -7/Factory | Lost 4 parts (1p1n2w) 3585 | -7/Factory | Garrison activated, responded to threat 3708 | -7/Factory | Core integrity fell below 50% 3795 | -7/Factory | Core integrity fell below 20% 3804 | -7/Factory | Destroyed by Y-54 Guardian with Gatling Laser Last Messages --------------- Critical hit (Burn: +37). G-47 Trooper destroyed. ALERT: Potential suspicious activity detected, Programmers report to Factory Zone 3N. Y-54 Guardian emerges from the garrison. Plasma Cannon destroyed. Gauss Cannon destroyed. Acquired 42 matter. Imp. Targeting Computer destroyed. Lrg. Storage Unit destroyed. Fusion Modulator explodes. Y-54 Guardian destroyed. ALERT: Garrison Access compromised, dispatching multiple assault carriers. Garrison Access disabled. Relay Coupler [Swarmer] tumbles out of Garrison Access. Y-54 Guardian heat short circuits Imp. Heat Sink. Hvy. Ion Cannon destroyed. Map ----- +----------------------------------------------------+ | ?? """ "F"# """""" #??#####??###########???????? | | ?? """ """# #### #??# #???????? | | ?# ?"" ?# # + " #??# #???????? | | ?# ## # # ## #??# #???????? | | ?+ |/ ! # ### ##??# #???????? | | ?# ##+######### # # ### #???# """ """ #???????? | | ?# ## # ## ## # ## #???# """ """ #???????? | | ?# ## """ # # #???# """ """ #???????? | | ?# ## """ # #???# #???????? | | ## ## """ # #########+#########???? | | # # ####+ | | # """ # # | | + """ + | | # # """ # """" " """ """" | | # # # """ """ """" | | # # # # """" """ """" | | # # # " # | | # ######### ""S"" # """ """" """" """ | | # #???? ??# """" !* # "Y """" """" """ | | # #????""?############## """ """" """" """ | | # #????"" # [=[ # | | # #?????" p # | | + #???????# ] # ################### | | # #???????# ] # #?????????????????? | | # #???????# % ] # #?????????????????? | | # #???????# [ @ #?????????????????? | | # #???????#" = # #?????????????????? | | + +???????#" !Y # #?????????????????? | | # #???????#G[%! # #?????????????????? | | # !!###+###?#" =! # #?????????????????? | | #*[ !! #?#" ] # #?????????????????? | | # ![= ! #?#! # #?????????????????? | | # #?###;;;;;;;"" # #?????????????????? | | ## #???### ##### #?????????????????? | | ?# #?############## #?????????????????? | | ?# = / #?# ################??? | | ?# / #?# # ! !#??? | | ?+ [ #?# # "" #??? | | ?# #?# """ """ # ""S """ """ #??? | | ?# #?# """ """"" + "" """ """ #??? | | ?# ## ### """ """"" # """ """ #??? | | ?# ?# #! #??? | | ?# ?# ################??? | | ?# ?# ##########+###?????????????????? | | ?# ?# #??????? ??????????????????? | | ?# ?# #????? """""""????????????????? | | ?# ?###############???# """"""" ??????????????? | | ?# ???????????????????# """"""" #?????????????? | | ?#????????????????????# """"""" #?????????????? | | ??????????????????????# ?????????????????? | +----------------------------------------------------+ Best States ------------- Heat Dissipation 34 Energy Generation 18 Energy Capacity 310 Matter Stores 287 Matter Capacity 500 Sight Range 16 Terrain Scan Density 85 Evasion (%) 50 Targeting Accuracy 11 Recoil Reduction 2 Item Schematics ----------------- None Robot Schematics ------------------ None Fabricated ------------ Nothing Repaired ---------- Nothing Alien Tech Used ----------------- None Achievements -------------- None Challenges ------------ None Game ------ Seed PotentialSurgeAutocannon Manual? 0 Play Time 00:27:35 Cumulative 101.0 hours Start 2025.08.23 @ 07:59:22 End 2025.08.23 @ 08:21:30 Sessions 1 Manual Loads 0 Difficulty Rogue Special Mode None Game No. 386 Rogue 386 Adventurer 0 Explorer 0 Win Type - Total 0 Types 0/0/0/0/0/0/0/0/0/0 Lore% 43 Gallery% 41 Achievement% 31 Wizard Run 0 Options --------- Layout 2 ASCII 0 Keyboard 0 Movement Mouse Keybinds 0 Fullscreen 2 Font 24/Smallcaps Map View 50x44 Zoom Use 0% Tactical HUD 0 Map Filters NONE Filters NONE Steam 1 RUN: 16d1aa20-68bc-4647-b589-e4ad4caf22f7